[Event "*** SCC Grand Prix: Titled Tuesday Blitz"]
[Site "Chess.com"]
[Date "2020.07.07"]
[Round "10"]
[White "Tashik"]
[Black "Matols"]
[Result "1/2-1/2"]
[WhiteElo "2371"]
[BlackElo "2205"]
[TimeControl "180+1"]
[EndTime "11:59:33 PDT"]
[Termination "Game drawn by stalemate"]

1. c4 {[%clk 0:03:00.9]} 1... Nf6 {[%clk 0:02:59.5]} 2. Nc3 {[%clk 0:03:00.7]}
2... e6 {[%clk 0:02:59.6]} 3. e4 {[%clk 0:03:00.9]} 3... d5 {[%clk 0:02:59.3]}
4. cxd5 {[%clk 0:03:01.4]} 4... exd5 {[%clk 0:02:58.7]} 5. e5 {[%clk 0:03:02]}
5... Nfd7 {[%clk 0:02:55.8]} 6. d4 {[%clk 0:03:00.6]} 6... c6 {[%clk 0:02:49.7]}
7. Bd3 {[%clk 0:02:58.3]} 7... Be7 {[%clk 0:02:48.7]} 8. Nf3 {[%clk 0:02:57]}
8... O-O {[%clk 0:02:46.3]} 9. O-O {[%clk 0:02:57]} 9... f6 {[%clk 0:02:40.5]}
10. Re1 {[%clk 0:02:49.2]} 10... fxe5 {[%clk 0:02:38.4]} 11. Nxe5 {[%clk
0:02:38.2]} 11... Nxe5 {[%clk 0:02:35]} 12. dxe5 {[%clk 0:02:39.1]} 12... Bf5
{[%clk 0:02:21.1]} 13. Bxf5 {[%clk 0:02:34.8]} 13... Rxf5 {[%clk 0:02:21]} 14.
Qg4 {[%clk 0:02:35.7]} 14... Qf8 {[%clk 0:02:17.5]} 15. Bh6 {[%clk 0:02:30.3]}
15... Rf7 {[%clk 0:01:51.1]} 16. Re2 {[%clk 0:02:02]} 16... Na6 {[%clk 0:01:43]}
17. h4 {[%clk 0:01:53]} 17... Re8 {[%clk 0:01:39.7]} 18. h5 {[%clk 0:01:50.4]}
18... Bc5 {[%clk 0:01:26.8]} 19. Rf1 {[%clk 0:01:48.9]} 19... Nc7 {[%clk
0:01:23.5]} 20. g3 {[%clk 0:01:07.3]} 20... Ne6 {[%clk 0:01:22.6]} 21. Kg2
{[%clk 0:01:07.9]} 21... Nd4 {[%clk 0:01:21]} 22. f4 {[%clk 0:00:47.3]} 22...
Nxe2 {[%clk 0:01:17.3]} 23. Nxe2 {[%clk 0:00:48.2]} 23... Rxe5 {[%clk 0:01:13]}
24. fxe5 {[%clk 0:00:36.5]} 24... Rxf1 {[%clk 0:01:09.3]} 25. Nf4 {[%clk
0:00:34.8]} 25... Rf2+ {[%clk 0:01:02.1]} 26. Kh3 {[%clk 0:00:34]} 26... Kh8
{[%clk 0:00:46.2]} 27. Ne6 {[%clk 0:00:31.4]} 27... Qf5 {[%clk 0:00:41.7]} 28.
Bxg7+ {[%clk 0:00:21.1]} 28... Kg8 {[%clk 0:00:40.9]} 29. Qxf5 {[%clk
0:00:19.1]} 29... Rxf5 {[%clk 0:00:39.9]} 30. h6 {[%clk 0:00:16.8]} 30... Bb6
{[%clk 0:00:35.4]} 31. Bf6 {[%clk 0:00:15.5]} 31... Kf7 {[%clk 0:00:32.4]} 32.
Ng5+ {[%clk 0:00:14.7]} 32... Kg6 {[%clk 0:00:30.4]} 33. Ne6 {[%clk 0:00:12.5]}
33... d4 {[%clk 0:00:21.4]} 34. Nf8+ {[%clk 0:00:12.5]} 34... Kf7 {[%clk
0:00:19.3]} 35. Nxh7 {[%clk 0:00:13.1]} 35... d3 {[%clk 0:00:15.2]} 36. Ng5+
{[%clk 0:00:13.6]} 36... Kg6 {[%clk 0:00:09.4]} 37. h7 {[%clk 0:00:13.2]} 37...
Rxg5 {[%clk 0:00:09.1]} 38. Bxg5 {[%clk 0:00:09.7]} 38... Kxh7 {[%clk
0:00:08.9]} 39. Kg4 {[%clk 0:00:07.3]} 39... Kg6 {[%clk 0:00:09]} 40. Bd2 {[%clk
0:00:07.9]} 40... Bd4 {[%clk 0:00:08.3]} 41. e6 {[%clk 0:00:06]} 41... Bxb2
{[%clk 0:00:08.4]} 42. Kf3 {[%clk 0:00:04.3]} 42... Kf6 {[%clk 0:00:08.4]} 43.
Ke4 {[%clk 0:00:04.8]} 43... Kxe6 {[%clk 0:00:08.3]} 44. Kxd3 {[%clk 0:00:05.5]}
44... Kd5 {[%clk 0:00:08.3]} 45. g4 {[%clk 0:00:05.4]} 45... Bg7 {[%clk
0:00:07.9]} 46. g5 {[%clk 0:00:05.6]} 46... c5 {[%clk 0:00:08.1]} 47. Ke3 {[%clk
0:00:02.4]} 47... b5 {[%clk 0:00:07]} 48. Kf4 {[%clk 0:00:02.6]} 48... b4 {[%clk
0:00:06.8]} 49. Kf5 {[%clk 0:00:03.1]} 49... c4 {[%clk 0:00:06.4]} 50. Bxb4
{[%clk 0:00:02.5]} 50... c3 {[%clk 0:00:05.6]} 51. Kg6 {[%clk 0:00:02.7]} 51...
Bd4 {[%clk 0:00:04.9]} 52. Kf7 {[%clk 0:00:03]} 52... c2 {[%clk 0:00:05]} 53.
Ba3 {[%clk 0:00:03.2]} 53... Kc4 {[%clk 0:00:05.1]} 54. g6 {[%clk 0:00:03.5]}
54... Kd3 {[%clk 0:00:05.1]} 55. g7 {[%clk 0:00:03.9]} 55... Bxg7 {[%clk
0:00:05.1]} 56. Kxg7 {[%clk 0:00:04.8]} 56... Kd2 {[%clk 0:00:05.2]} 57. Kf7
{[%clk 0:00:05.4]} 57... c1=Q {[%clk 0:00:05.4]} 58. Bxc1+ {[%clk 0:00:05.8]}
58... Kxc1 {[%clk 0:00:05.7]} 59. Ke6 {[%clk 0:00:06.4]} 59... Kb2 {[%clk
0:00:05.4]} 60. a4 {[%clk 0:00:07]} 60... Kb3 {[%clk 0:00:05.3]} 61. a5 {[%clk
0:00:07.5]} 61... Kb4 {[%clk 0:00:05.6]} 62. a6 {[%clk 0:00:07.6]} 62... Kb5
{[%clk 0:00:06]} 63. Kd5 {[%clk 0:00:07.4]} 63... Kxa6 {[%clk 0:00:06.2]} 64.
Kc4 {[%clk 0:00:08]} 64... Ka5 {[%clk 0:00:06.4]} 65. Kb3 {[%clk 0:00:08.6]}
65... Kb5 {[%clk 0:00:06.6]} 66. Ka2 {[%clk 0:00:09.5]} 66... Ka4 {[%clk
0:00:06.9]} 67. Ka1 {[%clk 0:00:10.4]} 67... a5 {[%clk 0:00:07.2]} 68. Kb1
{[%clk 0:00:10.8]} 68... Ka3 {[%clk 0:00:07.4]} 69. Ka1 {[%clk 0:00:11.7]} 69...
a4 {[%clk 0:00:07.8]} 70. Kb1 {[%clk 0:00:12.2]} 70... Kb3 {[%clk 0:00:08.4]}
71. Ka1 {[%clk 0:00:13.1]} 71... a3 {[%clk 0:00:09.3]} 72. Kb1 {[%clk
0:00:13.4]} 72... a2+ {[%clk 0:00:10.2]} 73. Ka1 {[%clk 0:00:14.2]} 73... Ka3
{[%clk 0:00:10.6]} 1/2-1/2

[Event "*** SCC Grand Prix: Titled Tuesday Blitz"]
[Site "Chess.com"]
[Date "2020.07.07"]
[Round "10"]
[White "AnishOnYoutube"]
[Black "Oleksandr_Bortnyk"]
[Result "1/2-1/2"]
[WhiteElo "2813"]
[BlackElo "2928"]
[TimeControl "180+1"]
[EndTime "11:59:35 PDT"]
[Termination "Game drawn - insufficient material"]

1. d4 {[%clk 0:03:00.9]} 1... Nf6 {[%clk 0:02:57.3]} 2. c4 {[%clk 0:03:01]} 2...
b6 {[%clk 0:02:54]} 3. Nc3 {[%clk 0:03:00]} 3... Bb7 {[%clk 0:02:53.6]} 4. Qc2
{[%clk 0:03:00.3]} 4... d5 {[%clk 0:02:53.1]} 5. cxd5 {[%clk 0:03:00.7]} 5...
Nxd5 {[%clk 0:02:54]} 6. e4 {[%clk 0:03:00.9]} 6... Nxc3 {[%clk 0:02:54.6]} 7.
bxc3 {[%clk 0:03:01.2]} 7... e5 {[%clk 0:02:55.5]} 8. Nf3 {[%clk 0:03:00.5]}
8... exd4 {[%clk 0:02:55.8]} 9. Bc4 {[%clk 0:03:00.1]} 9... Be7 {[%clk
0:02:33.2]} 10. cxd4 {[%clk 0:02:40.6]} 10... O-O {[%clk 0:02:27.9]} 11. O-O
{[%clk 0:02:40.6]} 11... Nc6 {[%clk 0:02:28]} 12. Bb2 {[%clk 0:02:40.6]} 12...
Na5 {[%clk 0:02:19.8]} 13. Bd3 {[%clk 0:02:15.6]} 13... c5 {[%clk 0:02:19.4]}
14. d5 {[%clk 0:02:16.1]} 14... c4 {[%clk 0:02:19.2]} 15. Be2 {[%clk 0:02:16.6]}
15... f5 {[%clk 0:02:03.8]} 16. Nd4 {[%clk 0:01:56.6]} 16... fxe4 {[%clk
0:01:58.2]} 17. Ne6 {[%clk 0:01:56.9]} 17... Qxd5 {[%clk 0:01:58.4]} 18. Nxf8
{[%clk 0:01:57.3]} 18... Rxf8 {[%clk 0:01:52.1]} 19. Rad1 {[%clk 0:01:57.1]}
19... Qc6 {[%clk 0:01:43.4]} 20. Bc3 {[%clk 0:01:50.2]} 20... e3 {[%clk
0:01:36]} 21. f3 {[%clk 0:01:48]} 21... Bh4 {[%clk 0:01:18.4]} 22. g3 {[%clk
0:01:39.5]} 22... Bf6 {[%clk 0:01:18.1]} 23. Bxa5 {[%clk 0:01:35.3]} 23... bxa5
{[%clk 0:01:19]} 24. Qxc4+ {[%clk 0:01:30.7]} 24... Qxc4 {[%clk 0:01:09.7]} 25.
Bxc4+ {[%clk 0:01:31.6]} 25... Kh8 {[%clk 0:01:10.5]} 26. Be2 {[%clk 0:01:27.3]}
26... h5 {[%clk 0:00:56.8]} 27. Rd7 {[%clk 0:01:22]} 27... Bc6 {[%clk
0:00:54.4]} 28. Rxa7 {[%clk 0:01:21.7]} 28... Rb8 {[%clk 0:00:50.9]} 29. Rxa5
{[%clk 0:01:09]} 29... Rb2 {[%clk 0:00:48.7]} 30. Rxh5+ {[%clk 0:01:06.7]} 30...
Kg8 {[%clk 0:00:47.9]} 31. Re1 {[%clk 0:01:00.5]} 31... Rxe2 {[%clk 0:00:23.2]}
32. Rxe2 {[%clk 0:01:00.6]} 32... Bxf3 {[%clk 0:00:24]} 33. Rxe3 {[%clk
0:01:01.2]} 33... Bxh5 {[%clk 0:00:24]} 34. Rd3 {[%clk 0:00:46.4]} 34... Be2
{[%clk 0:00:22]} 35. Rd2 {[%clk 0:00:43]} 35... Bb5 {[%clk 0:00:21.5]} 36. Rc2
{[%clk 0:00:38.7]} 36... Kf7 {[%clk 0:00:21.3]} 37. Kg2 {[%clk 0:00:39]} 37...
Ke6 {[%clk 0:00:21]} 38. Rc5 {[%clk 0:00:36.4]} 38... Bd7 {[%clk 0:00:18]} 39.
h4 {[%clk 0:00:36.6]} 39... Kd6 {[%clk 0:00:18]} 40. Rc2 {[%clk 0:00:36.7]}
40... Bd4 {[%clk 0:00:15.8]} 41. Kf3 {[%clk 0:00:33]} 41... Kd5 {[%clk
0:00:14.5]} 42. Rd2 {[%clk 0:00:30.7]} 42... Ke5 {[%clk 0:00:12.7]} 43. Re2+
{[%clk 0:00:29]} 43... Kd5 {[%clk 0:00:11.6]} 44. Kf4 {[%clk 0:00:28.9]} 44...
Bf6 {[%clk 0:00:11.2]} 45. Rd2+ {[%clk 0:00:27.4]} 45... Ke6 {[%clk 0:00:11.3]}
46. h5 {[%clk 0:00:23.7]} 46... Be5+ {[%clk 0:00:05.7]} 47. Kg4 {[%clk
0:00:23.7]} 47... Ke7+ {[%clk 0:00:02.7]} 48. Kf3 {[%clk 0:00:24]} 48... Bc6+
{[%clk 0:00:02.8]} 49. Kf2 {[%clk 0:00:23]} 49... Bd7 {[%clk 0:00:02.8]} 50. Re2
{[%clk 0:00:20.6]} 50... Kf6 {[%clk 0:00:02.3]} 51. Re4 {[%clk 0:00:21.2]} 51...
Bf5 {[%clk 0:00:01.5]} 52. Rc4 {[%clk 0:00:21.3]} 52... Kg5 {[%clk 0:00:01.7]}
53. Kf3 {[%clk 0:00:21.2]} 53... Bf6 {[%clk 0:00:01.8]} 54. Rc5 {[%clk
0:00:19.7]} 54... Be7 {[%clk 0:00:01.8]} 55. Rd5 {[%clk 0:00:14.1]} 55... Kf6
{[%clk 0:00:02.7]} 56. Kf4 {[%clk 0:00:14.6]} 56... Be6 {[%clk 0:00:03.1]} 57.
Rd2 {[%clk 0:00:14.8]} 57... Bb4 {[%clk 0:00:03.2]} 58. Rc2 {[%clk 0:00:09.7]}
58... Bd6+ {[%clk 0:00:03.2]} 59. Kf3 {[%clk 0:00:10.2]} 59... Bd5+ {[%clk
0:00:03.4]} 60. Kg4 {[%clk 0:00:10.6]} 60... Be6+ {[%clk 0:00:03.8]} 61. Kh4
{[%clk 0:00:11.2]} 61... Be7 {[%clk 0:00:04.1]} 62. g4 {[%clk 0:00:08.5]} 62...
Ke5+ {[%clk 0:00:04.6]} 63. g5 {[%clk 0:00:08.5]} 63... Bf5 {[%clk 0:00:03.2]}
64. Re2+ {[%clk 0:00:08]} 64... Be4 {[%clk 0:00:03.8]} 65. Kg4 {[%clk
0:00:07.5]} 65... Bf8 {[%clk 0:00:04.3]} 66. a4 {[%clk 0:00:06.6]} 66... Bb4
{[%clk 0:00:04.4]} 67. h6 {[%clk 0:00:06]} 67... gxh6 {[%clk 0:00:05.3]} 68.
gxh6 {[%clk 0:00:06.5]} 68... Kd4 {[%clk 0:00:05.9]} 69. Rxe4+ {[%clk
0:00:04.5]} 69... Kxe4 {[%clk 0:00:06.4]} 70. h7 {[%clk 0:00:04.9]} 70... Bc3
{[%clk 0:00:07]} 71. a5 {[%clk 0:00:02.9]} 71... Kd5 {[%clk 0:00:07.4]} 72. a6
{[%clk 0:00:03.5]} 72... Kc6 {[%clk 0:00:07.9]} 73. Kf5 {[%clk 0:00:04.1]} 73...
Kb6 {[%clk 0:00:08]} 74. Kg6 {[%clk 0:00:05]} 74... Kxa6 {[%clk 0:00:08.5]} 75.
Kf7 {[%clk 0:00:05.7]} 75... Kb7 {[%clk 0:00:09.1]} 76. Kg8 {[%clk 0:00:06.6]}
76... Kc7 {[%clk 0:00:09.7]} 77. h8=Q {[%clk 0:00:07.5]} 77... Bxh8 {[%clk
0:00:09.6]} 1/2-1/2

[Event "*** SCC Grand Prix: Titled Tuesday Blitz"]
[Site "Chess.com"]
[Date "2020.07.07"]
[Round "10"]
[White "kleopl"]
[Black "quesfr"]
[Result "1-0"]
[WhiteElo "2387"]
[BlackElo "2199"]
[TimeControl "180+1"]
[EndTime "11:59:38 PDT"]
[Termination "kleopl won on time"]

1. c4 {[%clk 0:03:00.9]} 1... e6 {[%clk 0:02:42.1]} 2. Nc3 {[%clk 0:03:00.1]}
2... d5 {[%clk 0:02:41.8]} 3. d4 {[%clk 0:03:00.5]} 3... Nf6 {[%clk 0:02:41.8]}
4. cxd5 {[%clk 0:02:59.8]} 4... exd5 {[%clk 0:02:42.7]} 5. Bg5 {[%clk
0:02:59.4]} 5... c6 {[%clk 0:02:43]} 6. e3 {[%clk 0:02:58.2]} 6... Bd6 {[%clk
0:02:43.1]} 7. Qf3 {[%clk 0:02:56.4]} 7... Nbd7 {[%clk 0:02:28.8]} 8. Bd3 {[%clk
0:02:51]} 8... O-O {[%clk 0:02:19]} 9. Nge2 {[%clk 0:02:49.7]} 9... Re8 {[%clk
0:02:16.8]} 10. O-O {[%clk 0:02:46.9]} 10... h6 {[%clk 0:02:10.6]} 11. Bxf6
{[%clk 0:02:46]} 11... Qxf6 {[%clk 0:02:08.8]} 12. Qxf6 {[%clk 0:02:45.1]} 12...
Nxf6 {[%clk 0:02:08.8]} 13. Rab1 {[%clk 0:02:45.4]} 13... a5 {[%clk 0:02:08.2]}
14. Na4 {[%clk 0:02:40.9]} 14... Ne4 {[%clk 0:02:00.8]} 15. Bxe4 {[%clk
0:02:35.7]} 15... Rxe4 {[%clk 0:02:00.8]} 16. Nb6 {[%clk 0:02:33.9]} 16... Rb8
{[%clk 0:02:00.9]} 17. Nc3 {[%clk 0:02:33.9]} 17... Re7 {[%clk 0:01:53.1]} 18.
Nxc8 {[%clk 0:02:33.7]} 18... Rxc8 {[%clk 0:01:53.3]} 19. a3 {[%clk 0:02:34.1]}
19... Ra8 {[%clk 0:01:43.4]} 20. Na4 {[%clk 0:02:30]} 20... Kf8 {[%clk
0:01:31.4]} 21. Rfc1 {[%clk 0:02:29.7]} 21... Ke8 {[%clk 0:01:29.7]} 22. Nc5
{[%clk 0:02:29.9]} 22... Bxc5 {[%clk 0:01:15.4]} 23. Rxc5 {[%clk 0:02:28.9]}
23... Kd7 {[%clk 0:01:15.5]} 24. h4 {[%clk 0:02:25.3]} 24... h5 {[%clk
0:01:12.8]} 25. g3 {[%clk 0:02:24.8]} 25... g6 {[%clk 0:01:12.4]} 26. Kg2 {[%clk
0:02:23.6]} 26... a4 {[%clk 0:00:54.7]} 27. b3 {[%clk 0:02:18]} 27... axb3
{[%clk 0:00:52.6]} 28. Rxb3 {[%clk 0:02:18.5]} 28... Kc7 {[%clk 0:00:51.5]} 29.
Rc1 {[%clk 0:02:16.7]} 29... Ra7 {[%clk 0:00:47.8]} 30. Kf3 {[%clk 0:02:15.2]}
30... Re8 {[%clk 0:00:47.9]} 31. Kf4 {[%clk 0:02:14.8]} 31... f6 {[%clk
0:00:46.9]} 32. Kf3 {[%clk 0:02:14.3]} 32... Rea8 {[%clk 0:00:44.7]} 33. Rcc3
{[%clk 0:02:14.1]} 33... Kd6 {[%clk 0:00:41.7]} 34. Rb4 {[%clk 0:02:11.1]} 34...
b5 {[%clk 0:00:34.7]} 35. Rbb3 {[%clk 0:02:09.2]} 35... Ra4 {[%clk 0:00:34.6]}
36. Ke2 {[%clk 0:02:07.6]} 36... Rc4 {[%clk 0:00:27.2]} 37. Kd3 {[%clk
0:02:06.6]} 37... Rxc3+ {[%clk 0:00:26.7]} 38. Kxc3 {[%clk 0:02:06.6]} 38... Ra4
{[%clk 0:00:26]} 39. Kb2 {[%clk 0:02:05.9]} 39... Rc4 {[%clk 0:00:25.6]} 40. Rd3
{[%clk 0:02:01.9]} 40... Ke6 {[%clk 0:00:25.5]} 41. f3 {[%clk 0:02:00.4]} 41...
Kf5 {[%clk 0:00:24.7]} 42. Rd2 {[%clk 0:02:00.4]} 42... g5 {[%clk 0:00:24.8]}
43. hxg5 {[%clk 0:01:59.9]} 43... fxg5 {[%clk 0:00:25.1]} 44. Rh2 {[%clk
0:02:00.1]} 44... Kg6 {[%clk 0:00:20.4]} 45. Rh1 {[%clk 0:02:00.3]} 45... Kh6
{[%clk 0:00:15.9]} 46. Kb3 {[%clk 0:01:52.9]} 46... Kg6 {[%clk 0:00:15.7]} 47.
Kb2 {[%clk 0:01:51.1]} 47... Kh6 {[%clk 0:00:15.4]} 48. Rh2 {[%clk 0:01:01.6]}
48... Kg6 {[%clk 0:00:15.3]} 49. Rh3 {[%clk 0:00:58]} 49... g4 {[%clk
0:00:11.4]} 50. fxg4 {[%clk 0:00:57.1]} 50... hxg4 {[%clk 0:00:11.7]} 51. Rh8
{[%clk 0:00:57]} 51... Kf5 {[%clk 0:00:10.8]} 52. Re8 {[%clk 0:00:57.2]} 52...
Kg5 {[%clk 0:00:10]} 53. Re5+ {[%clk 0:00:54.4]} 53... Kf6 {[%clk 0:00:10]} 54.
Rh5 {[%clk 0:00:53.8]} 54... Kg6 {[%clk 0:00:09.7]} 55. Rh8 {[%clk 0:00:52.3]}
55... Kf5 {[%clk 0:00:09.5]} 56. Re8 {[%clk 0:00:52.6]} 56... Kg5 {[%clk
0:00:09.2]} 57. Rg8+ {[%clk 0:00:51.1]} 57... Kf5 {[%clk 0:00:09.2]} 58. Rg7
{[%clk 0:00:51.6]} 58... Ra4 {[%clk 0:00:05.1]} 59. Re7 {[%clk 0:00:43.7]} 59...
Rc4 {[%clk 0:00:04.4]} 60. Re5+ {[%clk 0:00:44]} 60... Kg6 {[%clk 0:00:04]} 61.
Kb3 {[%clk 0:00:44.3]} 61... Kf6 {[%clk 0:00:02.9]} 62. Re8 {[%clk 0:00:40.3]}
62... Kg5 {[%clk 0:00:03]} 63. Rf8 {[%clk 0:00:39.4]} 63... Kg6 {[%clk
0:00:03.2]} 64. Ra8 {[%clk 0:00:30.7]} 64... Kf5 {[%clk 0:00:03.1]} 65. Re8
{[%clk 0:00:28.8]} 65... Kf6 {[%clk 0:00:03.2]} 66. Re5 {[%clk 0:00:15.5]} 66...
Rc1 {[%clk 0:00:02.8]} 67. e4 {[%clk 0:00:15]} 67... dxe4 {[%clk 0:00:02.4]} 68.
Rxe4 {[%clk 0:00:15.9]} 68... Kf5 {[%clk 0:00:02.7]} 69. Rf4+ {[%clk 0:00:15.8]}
69... Kg5 {[%clk 0:00:02.9]} 70. d5 {[%clk 0:00:15.3]} 70... cxd5 {[%clk
0:00:02.5]} 71. Rd4 {[%clk 0:00:14.9]} 71... Rg1 {[%clk 0:00:02.1]} 72. Rxd5+
{[%clk 0:00:14.9]} 72... Kf6 {[%clk 0:00:02.5]} 73. Rd3 {[%clk 0:00:14.9]} 73...
Kf5 {[%clk 0:00:01.9]} 74. Kb4 {[%clk 0:00:15.1]} 1-0

[Event "*** SCC Grand Prix: Titled Tuesday Blitz"]
[Site "Chess.com"]
[Date "2020.07.07"]
[Round "10"]
[White "gui_borba"]
[Black "karinachess1"]
[Result "0-1"]
[WhiteElo "2357"]
[BlackElo "2507"]
[TimeControl "180+1"]
[EndTime "11:59:52 PDT"]
[Termination "karinachess1 won by resignation"]

1. d4 {[%clk 0:03:00.9]} 1... Nf6 {[%clk 0:02:59.5]} 2. Bf4 {[%clk 0:03:01]}
2... e6 {[%clk 0:02:57.4]} 3. e3 {[%clk 0:03:01.1]} 3... d5 {[%clk 0:02:57.6]}
4. c3 {[%clk 0:03:01.4]} 4... Bd6 {[%clk 0:02:57.8]} 5. Bg3 {[%clk 0:03:00.9]}
5... c5 {[%clk 0:02:57.9]} 6. Nf3 {[%clk 0:03:00.9]} 6... Qc7 {[%clk 0:02:56.6]}
7. Nbd2 {[%clk 0:03:01.1]} 7... Nbd7 {[%clk 0:02:56.5]} 8. Bd3 {[%clk 0:03:00]}
8... O-O {[%clk 0:02:56.4]} 9. O-O {[%clk 0:03:00.4]} 9... e5 {[%clk 0:02:55.1]}
10. e4 {[%clk 0:03:00.4]} 10... exd4 {[%clk 0:02:39]} 11. cxd4 {[%clk
0:02:56.4]} 11... dxe4 {[%clk 0:02:29.6]} 12. Nxe4 {[%clk 0:02:55.5]} 12... Nxe4
{[%clk 0:02:29.1]} 13. Bxe4 {[%clk 0:02:56.4]} 13... Nf6 {[%clk 0:02:27.7]} 14.
Bc2 {[%clk 0:02:26.5]} 14... Bxg3 {[%clk 0:02:17.7]} 15. hxg3 {[%clk 0:02:24.7]}
15... Bg4 {[%clk 0:02:12.5]} 16. dxc5 {[%clk 0:02:17.1]} 16... Rad8 {[%clk
0:02:04.5]} 17. Qc1 {[%clk 0:02:17.1]} 17... Rd5 {[%clk 0:01:45]} 18. b4 {[%clk
0:02:13.8]} 18... Rh5 {[%clk 0:01:33.6]} 19. Re1 {[%clk 0:01:41.7]} 19... Qc6
{[%clk 0:01:25.7]} 20. Qf4 {[%clk 0:01:36.7]} 20... Be6 {[%clk 0:01:07.7]} 21.
Rad1 {[%clk 0:01:22.7]} 21... Nd5 {[%clk 0:01:01]} 22. Qe4 {[%clk 0:01:01]}
22... Qc8 {[%clk 0:00:55.8]} 23. Qd4 {[%clk 0:00:40.5]} 23... Nf6 {[%clk
0:00:40.5]} 24. a3 {[%clk 0:00:35.2]} 24... a5 {[%clk 0:00:39.4]} 25. Ne5 {[%clk
0:00:33.3]} 25... axb4 {[%clk 0:00:38.5]} 26. axb4 {[%clk 0:00:34.2]} 26... Bd5
{[%clk 0:00:25.3]} 27. g4 {[%clk 0:00:24.9]} 27... Rh4 {[%clk 0:00:21]} 28. f3
{[%clk 0:00:18.9]} 28... Be6 {[%clk 0:00:12.2]} 29. Qf2 {[%clk 0:00:16.4]} 29...
g5 {[%clk 0:00:11]} 30. Nd3 {[%clk 0:00:12.5]} 30... Nd5 {[%clk 0:00:09.3]} 31.
Bb3 {[%clk 0:00:10.3]} 31... Rd8 {[%clk 0:00:07.4]} 32. Ne5 {[%clk 0:00:06.3]}
32... Qc7 {[%clk 0:00:07]} 33. Bxd5 {[%clk 0:00:05]} 33... Rxd5 {[%clk
0:00:06.8]} 34. Qe3 {[%clk 0:00:05.1]} 34... f6 {[%clk 0:00:06.1]} 35. Rxd5
{[%clk 0:00:04.5]} 35... Bxd5 {[%clk 0:00:07]} 36. Nd3 {[%clk 0:00:04.4]} 36...
Qh2+ {[%clk 0:00:06.9]} 37. Kf1 {[%clk 0:00:02.6]} 37... Bf7 {[%clk 0:00:06.4]}
38. Qf2 {[%clk 0:00:01.9]} 38... Qc7 {[%clk 0:00:05.9]} 39. Ke2 {[%clk
0:00:02.4]} 39... Kg7 {[%clk 0:00:05.9]} 40. Kd2 {[%clk 0:00:02.9]} 40... Qd7
{[%clk 0:00:05.4]} 41. Kc2 {[%clk 0:00:02.8]} 41... Bg6 {[%clk 0:00:05.8]} 42.
Qe3 {[%clk 0:00:03.2]} 42... Rh2 {[%clk 0:00:06.1]} 43. Re2 {[%clk 0:00:03.2]}
43... h5 {[%clk 0:00:06.4]} 44. Kc3 {[%clk 0:00:03.6]} 44... hxg4 {[%clk
0:00:06.4]} 45. fxg4 {[%clk 0:00:04.5]} 45... Rh8 {[%clk 0:00:06.6]} 46. Qe7+
{[%clk 0:00:04.5]} 46... Qxe7 {[%clk 0:00:06.9]} 47. Rxe7+ {[%clk 0:00:05.4]}
47... Kh6 {[%clk 0:00:06.7]} 48. Rxb7 {[%clk 0:00:06.3]} 48... Rd8 {[%clk
0:00:06.7]} 49. Nb2 {[%clk 0:00:05.8]} 49... Re8 {[%clk 0:00:06.7]} 50. c6
{[%clk 0:00:05.9]} 50... Re2 {[%clk 0:00:06.8]} 51. b5 {[%clk 0:00:06.1]} 51...
Rc2+ {[%clk 0:00:06.9]} 52. Kb3 {[%clk 0:00:05.9]} 52... Rc1 {[%clk 0:00:07.3]}
53. c7 {[%clk 0:00:06]} 53... Be4 {[%clk 0:00:07.2]} 54. Nd3 {[%clk 0:00:03.6]}
54... Bxd3 {[%clk 0:00:04.8]} 55. b6 {[%clk 0:00:03.9]} 55... Be4 {[%clk
0:00:05.2]} 56. Rb8 {[%clk 0:00:04]} 56... Bd5+ {[%clk 0:00:05.3]} 57. Kb2
{[%clk 0:00:01.9]} 57... Be6 {[%clk 0:00:05.8]} 58. c8=Q {[%clk 0:00:02.3]}
58... Rxc8 {[%clk 0:00:04.2]} 59. Rxc8 {[%clk 0:00:02]} 59... Bxc8 {[%clk
0:00:05.1]} 60. Kc3 {[%clk 0:00:02.8]} 60... Kg6 {[%clk 0:00:05.5]} 61. Kd4
{[%clk 0:00:03.7]} 61... Bb7 {[%clk 0:00:05.9]} 62. Kc5 {[%clk 0:00:04.6]} 62...
f5 {[%clk 0:00:06.3]} 63. gxf5+ {[%clk 0:00:04.5]} 63... Kxf5 {[%clk 0:00:07.2]}
64. Kd6 {[%clk 0:00:05.4]} 64... Bxg2 {[%clk 0:00:07.3]} 65. Kc7 {[%clk
0:00:04.9]} 65... g4 {[%clk 0:00:07.7]} 0-1